Cogmind - Beta 15 @@@ ROGUE MODE // 2025.07.02 @ 00:32:09 Player: SpecialSpeedy Result: Destroyed by YI-UF0 with YI-UF0's Doublenader Performance ------------- Evolutions (0) 0 Regions Visited (2) 400 Robots Destroyed (12) 60 Value Destroyed (187) 187 Prototype IDs (0) 0 Alien Tech Used (0) 0 Bonus (0) 0 TOTAL SCORE: 647 Bonus ------- None Cogmind --------- Core Integrity 0/250 Matter 203/300 Energy 100/100 System Corruption 0% Temperature Cool (0) Movement Core (50) Location -10/Mines Parts ------- > --- POWER (1) -------- (None) > --- PROPULSION (2) --- (None) > --- UTILITY (2) ------ Visual Processing Unit > --- WEAPON (2) ------- Assault Rifle Light Assault Rifle > --- INVENTORY (5) ---- EM Pulse Gun Spread Laser Spread Laser Peak State ------------ > --- POWER ------------ Light Ion Engine > --- PROPULSION ------- Improved Treads Improved Treads > --- UTILITY ---------- Visual Processing Unit Propulsion Shielding > --- WEAPON ----------- Spread Laser Spread Laser > --- INVENTORY -------- EM Pulse Gun Assault Rifle Light Assault Rifle [Rating: 12] Favorites ----------- Power Light Ion Engine Engine Light Ion Engine Propulsion Improved Treads Treads Improved Treads Hover Unit Hover Unit Utility Visual Processing Unit Processor Visual Processing Unit Protection Propulsion Shielding Weapon Assault Rifle Energy Gun Spread Laser Ballistic Gun Assault Rifle Build | -11 -10 -10 ------- Run | Yrd Mat Min Slots Evolved . | . . . Power . | . . . Propulsion . | . . . Utility . | . . . Weapon . | . . . Parts Attached 14 | 5 9 . Power 1 | 1 . . Engine 1 | 1 . . Core . | . . . Reactor . | . . . Propulsion 6 | 2 4 . Treads 4 | 2 2 . Leg . | . . . Wheel . | . . . Hover 2 | . 2 . Flight . | . . . Utility 2 | . 2 . Device . | . . . Storage . | . . . Processor 1 | . 1 . Hackware . | . . . Protection 1 | . 1 . Artifact . | . . . Weapon 5 | 2 3 . Energy Gun 3 | 1 2 . Energy Cannon . | . . . Ballistic Gun 2 | 1 1 . Ballistic Cannon . | . . . Launcher . | . . . Special Weapon . | . . . Impact Weapon . | . . . Slashing Weapon . | . . . Piercing Weapon . | . . . Special Melee Weapon . | . . . Unidentified Prototypes . | . . . Parts Lost 4 | . . 4 Power 1 | . . 1 Propulsion 2 | . . 2 Utility 1 | . . 1 Weapon . | . . . Highest Loss Streak 3 | . . 3 To Critical Strikes . | . . . Average Backups 2 | 1 2 3 Power . | . . . Propulsion . | . . . Utility . | . . . Weapon 2 | 1 1 3 Tool/Special . | . . . Unused Backups . | . . . Power . | . . . Propulsion . | . . . Utility . | . . . Weapon . | . . . Tool/Special . | . . . Average Slot Usage (%) 86 | . 83 91 Engine 13 | . 14 13 Treads 23 | . 21 26 Hover 4 | . 7 . Processor 9 | . 7 14 Protection 6 | . 5 8 Energy Gun 9 | . 6 14 Ballistic Gun 18 | . 21 13 Peak Build Rating 12 | 5 12 12 Average Rating 7 | 3 7 10 On Entrance 5 | . 4 12 Naked Turns . | . . . Heaviest Build 10 | 7 10 10 Greatest Support 46 | 40 46 46 Greatest Overweight (x) 2 | 2 . . Average Overweight (x) . | . . . Largest Inventory Capacity 5 | 5 5 5 Average Capacity 5 | 5 5 5 Most Carried 5 | 3 5 4 Average Carried 2 | 1 2 3 Final Capacity 5 | 5 5 5 Final Carried 3 | 2 3 3 Class Distribution -------------------- 100% | Mutant Dominant Class ---------------- Mutant | -10/Materials Mutant | -10/Mines Resources | -11 -10 -10 ----------- Run | Yrd Mat Min Matter Collected 295 | 205 32 58 Remotely . | . . . Salvage Created 184 | . 59 125 Parts 20 | . 9 11 Haulers Intercepted . | . . . Recyclers Shooed 1 | . . 1 Parts Field Recycled . | . . . Retrieved Matter . | . . . Parts Self-Destructed . | . . . Prevented . | . . . Kills | -11 -10 -10 ------- Run | Yrd Mat Min Combat Hostiles Destroyed 11 | . 3 8 Guns 11 | . 3 8 Classes Destroyed 3 | . 2 1 Watcher 1 | . 1 . Swarmer 9 | . 3 6 Grunt 2 | . . 2 Best Kill Streak 7 | . 3 7 Combat Bots Only 7 | . 3 7 Max Kills in Single Turn 2 | . 2 1 Gunslinging 1 | . 1 . Exploded . | . . . Melee . | . . . Uniques/NPCs Destroyed . | . . . Combat | -11 -10 -10 -------- Run | Yrd Mat Min Hostile Shots Fired 73 | . 15 58 Missed 22 | . 4 18 Hits 51 | . 11 40 Projectile 51 | . 11 40 AOE 18 | . . 18 Damage Taken 885 | . 102 783 Core 258 | . 8 250 Absorbed by Shields . | . . . Redirected to Shielding 50 | . 12 38 Core Remaining (%) 100 | 100 . . Volleys Fired 29 | . 8 21 Largest 2 | . 2 2 Hottest 130 | . 130 130 Shots Fired 57 | . 16 41 Gun 57 | . 16 41 Cannon . | . . . Launcher . | . . . Special . | . . . Kinetic 26 | . 10 16 Thermal 31 | . 6 25 Explosive . | . . . Electromagnetic . | . . . Robot Hit Streak 7 | . 4 7 Robot Miss Streak 11 | . 8 11 Penetration Max . | . . . Secondary Targets 3 | . 1 2 Max Gunslinging Chain 1 | . 1 1 Shots Hit Robots 35 | . 9 26 Core Hits 31 | . 9 22 Critical Kills 1 | . 1 . Critical Parts Destroyed 1 | . 1 . Critical Strikes 2 | . 2 . Destroy 2 | . 2 . Melee Attacks . | . . . Impact . | . . . Slashing . | . . . Piercing . | . . . Sneak Attacks . | . . . Combat Hostiles . | . . . Follow-up Attacks . | . . . Damage Inflicted 393 | . 94 299 Guns 393 | . 94 299 Cannons . | . . . Explosions . | . . . Melee . | . . . Ramming . | . . . Kinetic 120 | . 45 75 Thermal 273 | . 49 224 Explosive . | . . . Electromagnetic . | . . . Impact . | . . . Slashing . | . . . Piercing . | . . . Highest Corruption . | . . . Average Corruption . | . . . Corruption Purged . | . . . Corruption Blocked . | . . . Overload Shots . | . . . Overflow Damage . | . . . Projectiles . | . . . Explosions . | . . . Melee . | . . . Knockbacks . | . . . Impact . | . . . Kinetic . | . . . Secondary . | . . . Self-Inflicted Damage . | . . . Shots . | . . . Rammed . | . . . Targets Rammed . | . . . Kicked . | . . . Crushed . | . . . Highest Temperature 470 | . 207 470 Average Temperature 180 | . 88 205 Received Heat Transfer 84 | . 24 60 Effects 5 | . . 5 Energy Bleed 1 | . . 1 Interference 2 | . . 2 Short Circuit 1 | . . 1 Damage (major) 1 | . . 1 Siege Activations . | . . . Martial Activations . | . . . Shielding Activations . | . . . Robots Disrupted . | . . . Combat Hostiles . | . . . Robots Corrupted . | . . . Combat Hostiles . | . . . Parts Fried . | . . . Impact Corruptions . | . . . Robots Melted . | . . . Combat Hostiles . | . . . Parts Melted . | . . . Heat Transferred 340 | . 60 280 Parts Sabotaged . | . . . Parts Stolen . | . . . Parts Stripped . | . . . Power Chain Reactions . | . . . Alert | -11 -10 -10 ------- Run | Yrd Mat Min Maximum Alert Level . | . . . Low Security (%) 100 | 100 100 100 Level 1 . | . . . Level 2 . | . . . Level 3 . | . . . Level 4 . | . . . Level 5 . | . . . High Security . | . . . Max Security . | . . . Peak Influence 169 | . 70 169 Initial 19 | . . 19 Average 49 | . 10 120 Influence Increases 282 | . 92 190 Destroy 0b10 Robot/C 220 | . 60 160 Destroy 0b10 Robot/NC 5 | . 5 . Destroy Leader 42 | . 12 30 Successful Hack 15 | . 15 . Influence Decreases 253 | . 42 211 Entered New Map 31 | . . 31 Time Decay 122 | . 42 80 Lost Part 40 | . . 40 Lost Ally 60 | . . 60 Squads Dispatched . | . . . Investigation . | . . . Extermination . | . . . Reinforcement . | . . . Assault . | . . . Garrison . | . . . Intercept . | . . . Searches Triggered . | . . . Construction Impeded . | . . . Haulers Reinforced . | . . . Active Scanning Responses . | . . . Cargo Convoy Interrupts . | . . . Stealth | -11 -10 -10 --------- Run | Yrd Mat Min Distress Signals . | . . . Communications Jammed . | . . . Distress Signals . | . . . Times Spotted 19 | . 10 9 Peak Tracking Total 5 | . 4 5 Tactical Retreats . | . . . Traps | -11 -10 -10 ------- Run | Yrd Mat Min Traps Triggered . | . . . Indirectly . | . . . Trap Hack Attempts . | . . . Triggered . | . . . Disarmed . | . . . Reprogrammed . | . . . Reused . | . . . Traps Extracted . | . . . Installed . | . . . Triggered . | . . . Machines | -11 -10 -10 ---------- Run | Yrd Mat Min Machines Disabled . | . . . Max in Single Turn . | . . . Machines Repaired . | . . . Machines Dismantled . | . . . Machines Sabotaged . | . . . Overloaded Fab Kills . | . . . Hacking | -11 -10 -10 --------- Run | Yrd Mat Min Machines Accessed 2 | . 2 . Terminals 1 | . 1 . Fabricators . | . . . Repair Stations . | . . . Recycling Units 1 | . 1 . Scanalyzers . | . . . Garrison Access . | . . . Total Hacks 5 | . 5 . Successful 4 | . 4 . Failed 1 | . 1 . Catastrophic . | . . . Database Lockouts . | . . . Manual . | . . . Terminals 2 | . 2 . Fabricators . | . . . Repair Stations . | . . . Recycling Units 3 | . 3 . Scanalyzers . | . . . Garrison Access . | . . . Terminal Hacks 2 | . 2 . Level Access Points 1 | . 1 . Recall Investigation 1 | . 1 . Fabricator Hacks . | . . . Repair Station Hacks . | . . . Recycling Unit Hacks 2 | . 2 . Retrieve Matter 2 | . 2 . Scanalyzer . | . . . Garrison Access Hacks . | . . . Unauthorized Hacks . | . . . Terminals . | . . . Fabricators . | . . . Repair Stations . | . . . Recycling Units . | . . . Scanalyzers . | . . . Garrison Access . | . . . Data Cores Recovered . | . . . Used . | . . . Hacking Detections . | . . . Full Trace Events . | . . . Feedback Events . | . . . Feedback Blocked . | . . . Robot Schematics Acquired . | . . . Robots Built . | . . . Authchips . | . . . Time . | . . . Total Robot Build Rating . | . . . Part Schematics Acquired . | . . . Parts Built . | . . . Authchips . | . . . Time . | . . . Total Part Build Rating . | . . . Parts Repaired . | . . . Time . | . . . Parts Recycled . | . . . Recycled Matter . | . . . Retrieved Matter . | . . . Retrieved Components . | . . . Parts Scanalyzed . | . . . Part Schematics Acquired . | . . . Parts Damaged . | . . . Bothacking | -11 -10 -10 ------------ Run | Yrd Mat Min Used RIF Installer . | . . . Robots Hacked . | . . . Non-combat . | . . . Combat . | . . . Robot Hacks Applied . | . . . Relay Couplers Released . | . . . Fabnet Peak Effective % . | . . . Robots Rewired . | . . . Allies Hacked . | . . . Hacks Repelled . | . . . Allies | -11 -10 -10 -------- Run | Yrd Mat Min Total Allies 3 | . . 3 Largest Group 3 | . . 3 Highest-Rated Group 40 | . . 40 Highest-Rated Ally 16 | . . 16 Total Orders 1 | . . 1 GUARD 1 | . . 1 Ally Attacks 4 | . . 4 Total Damage 43 | . . 43 Kills . | . . . Allies Corrupted . | . . . Allies Melted . | . . . Intel | -11 -10 -10 ------- Run | Yrd Mat Min Active Infowar (turns) 264 | . 114 150 Optics 264 | . 114 150 Robot Analysis Total . | . . . Derelict Logs Recovered . | . . . Drone Launches . | . . . Drone Recoveries . | . . . Exploration | -11 -10 -10 ------------- Run | Yrd Mat Min Turns Passed 455 | 60 229 166 Spaces Moved 269 | 34 168 67 Core 16 | 12 . 4 Treads 173 | 22 88 63 Legs . | . . . Wheels . | . . . Hover 80 | . 80 . Flight . | . . . Fastest Speed 50 | 50 56 50 Average Speed 125 | 144 110 153 Slowest Speed 160 | 160 160 160 Overloaded Moves . | . . . Propulsion Burnouts . | . . . Robots Hopped . | . . . Potential Cave-ins . | . . . Cave-ins Triggered . | . . . Exploration Rate (%) 24 | 3 43 28 Regions Visited 2 Branch Regions 1 Pre-discovered Areas . | . . . Known Exits Taken . | . . . Unknown Exits Taken 2 | 1 1 . Scrap Searched . | . . . Spaces Dug . | . . . Terrain Destroyed . | . . . Melee . | . . . Projectile . | . . . AOE . | . . . Terrain Rammed . | . . . Walls Destroyed . | . . . Machines Disabled . | . . . Actions | -11 -10 -10 --------- Run | Yrd Mat Min Total 333 | 45 196 92 Wait . | . . . Move 267 | 33 167 67 Hop . | . . . Pick Up 14 | 6 8 . Fast Attach . | . . . Attach 10 | 5 3 2 Detach 3 | 1 . 2 Swap 6 | . 6 . Drop 4 | . 4 . Fire 29 | . 8 21 Melee . | . . . Ram . | . . . Kick . | . . . Crush . | . . . Escape Stasis . | . . . Rewire . | . . . Trap . | . . . Miscellaneous . | . . . Route ------- -11/Scrapyard -10/Materials (discovered 4 exits: Mat x3 / [*Min]) -10/Mines History --------- Turn | Location | Event 25 | -11/Scrapyard | Discovered new exit (range 16) 61 | -11/Scrapyard | Entered Materials 91 | -10/Materials | Identified exit to Materials 193 | -10/Materials | Discovered new exit (range 15) 290 | -10/Materials | Entered Mines 318 | -10/Mines | Build established: Mutant 364 | -10/Mines | Destroyed 7 combat bots 418 | -10/Mines | Assisted by bots powering up and referring to "LRC-V3" 447 | -10/Mines | Core integrity fell below 50% 455 | -10/Mines | Core integrity fell below 20% 456 | -10/Mines | Destroyed by YI-UF0 with YI-UF0's Doublenader Last Messages --------------- Propulsion Shielding destroyed. G-34 Mercenary destroyed. Trooper 1a: "Hello LRC-V3. What is your command?" Mercenary 1a: "Hello LRC-V3. What is your command?" Trooper 1b: "Hello LRC-V3. What is your command?" Lgt. Ion Engine destroyed. YI-UF0: "BOOM!" Trooper 1b destroyed. Destroyed Shock Absorption System. The unstable cave ceiling collapses. Imp. Treads destroyed. YI-UF0: "KABOOM!" Trooper 1a destroyed. The unstable cave ceiling collapses. Imp. Treads destroyed. Mercenary 1a destroyed. The unstable cave ceiling collapses. Map ----- +----------------------------------------------------+ | ?????????????????#### #???#= #?????????? | | ????????????????????# """ #??## #?????????? | | ????????????????????# """ #??# #?????????? | | ????????????????????# """ #### #?????????? | | ????????????????????# # #?????????? | | ????????????????????# # ## #?????????? | | ????????????????????# ? # ##?????????? | | ????????????????????##????#### #### ##??????????? | | ?????????????????????????????#????# #???????????? | | ??????????????????????????????????# #???????????? | | ??????????????????????????????????# #???????????? | | ??????????????????????????????????# #???????????? | | ??????????????????????????????????# #???????????? | | ??????????????????????????????????# #???????????? | | ??????????????????????????????????# #???????????? | | ??????????????????????????????????# #???????????? | | ??????????#####?#?????????????##### #???????????? | | ?????????? ? ???#????????# ## #???????????? | | ?????????# ? ?? ????##### # ##??????????? | | ?????????# *# ?# ???# ##?????????? | | ?????????# !% # #### ##????????? | | ???????? % # # #????????? | | ?????????# = g # #?? | | ???????? # #?? | | ???????????? # ## #? | | ????????????????????# @ ## ####??? # | | ????????????????????# #? ##???????? | | ????????????????????# #? #??????????? | | ????????????????????# #? #??????????? | | ????????????????????###### #??????????? | | ?????????????????????????## # #??????????? | | ?????????????????????????? #??????????? | | ?????????????????????????? # ? ##??????????? | | ?????????????????????????? #######?###???????????? | | ?????????????????????????? ??????????????????????? | | ?????????????????????????? ??????????????????????? | | ?????????????????????????? ??????????????????????? | | ??????????????????????????#??????????????????????? | | ?????????????????????????????????????????????????? | | ?????????????????????????????????????????????????? | | ?????????????????????????????????????????????????? | | ?????????????????????????????????????????????????? | | ?????????????????????????????????????????????????? | | ?????????????????????????????????????????????????? | | ?????????????????????????????????????????????????? | | ?????????????????????????????????????????????????? | | ?????????????????????????????????????????????????? | | ?????????????????????????????????????????????????? | | ?????????????????????????????????????????????????? | | ?????????????????????????????????????????????????? | +----------------------------------------------------+ Best States ------------- Heat Dissipation 25 Energy Generation 10 Energy Capacity 125 Matter Stores 256 Matter Capacity 300 Sight Range 18 Terrain Scan Density 10 Propulsion Shielding 33 Evasion (%) 53 Recoil Reduction 2 Item Schematics ----------------- None Robot Schematics ------------------ None Fabricated ------------ Nothing Repaired ---------- Nothing Alien Tech Used ----------------- None Achievements -------------- None Challenges ------------ None Game ------ Seed SwordQuantumSheargun Manual? 0 Play Time 00:07:58 Cumulative 2.6 hours Start 2025.07.02 @ 00:25:24 End 2025.07.02 @ 00:32:09 Sessions 1 Manual Loads 0 Difficulty Rogue Special Mode None Game No. 7 Rogue 7 Adventurer 0 Explorer 0 Win Type - Total 0 Types 0/0/0/0/0/0/0/0/0/0 Lore% 5 Gallery% 8 Achievement% 10 Wizard Run 0 Options --------- Layout 1 ASCII 0 Keyboard 0 Movement Mouse Keybinds 0 Fullscreen 1 Font 24/Smallcaps Map View 50x35 Zoom Use 2% Tactical HUD 0 Map Filters NONE Filters NONE Steam 1 RUN: 3de590e2-d74e-4978-b0a6-2f85838707f3